bitfinex/quotes_ETHUSD_20241223
["timestamp","ask_amount","ask_price","bid_price","bid_amount"]
[1734925446418,2.98758,3347.2,3346.5,5.08793937]
[1734925447015,2.98739,3347.5,3346.5,5.08793937]
[1734925447240,2.98743,3347.4,3346.5,5.08793937]
[1734925447958,0.7932,3347.3,3346.3,0.58489746]
[1734925448174,3.50275973,3346.7,3345.0,5.08793937]
[1734925448319,3.0,3346.4,3344.9,5.08793937]
[1734925448673,2.98928,3345.3,3344.9,1.17009563]
[1734925448877,2.98893,3345.7,3344.9,1.17009563]
[1734925449021,2.98873,3345.9,3345.0,0.29272369]
[1734925449216,0.7932,3346.3,3344.9,1.17009563]
[1734925449412,2.98877,3345.9,3344.9,1.17009563]
[1734925450216,2.98877,3345.9,3344.7,2.98979]
[1734925450417,2.98853,3346.2,3344.9,2.98962]
[1734925450675,0.7932,3346.3,3344.9,2.98962]
[1734925450823,2.98857,3346.1,3345.0,0.61376726]
[1734925451026,2.98867,3346.0,3345.0,0.61376726]
[1734925451228,2.98867,3346.0,3344.7,0.14805263]
[1734925451523,2.98867,3346.0,3344.7,3.53976]
[1734925452035,2.98828,3346.4,3344.7,3.53976]
[1734925452036,2.98829,3346.4,3345.2,2.98934]
[1734925452972,6.49026973,3347.3,3345.4,5.08793937]
[1734925452973,0.7848,3347.1,3345.4,5.08793937]
[1734925453159,2.98813,3346.6,3345.4,8.88584331]
[1734925453537,2.98813,3346.6,3345.6,3.0]
[1734925453757,2.98793,3346.8,3345.6,3.0]
[1734925453960,2.98802,3346.7,3345.6,3.0]
[1734925454142,2.98802,3346.7,3345.7,1.18857933]
[1734925455435,3.7848,3347.1,3345.5,5.08793937]
[1734925455640,3.7731,3346.4,3345.0,5.08793937]
[1734925455841,3.7731,3346.4,3345.1,0.60779102]
[1734925456067,2.98862,3346.1,3345.1,1.49210756]
[1734925456262,2.98864,3346.0,3345.1,1.49210756]
[1734925456641,3.36575,3346.3,3345.1,1.49210756]
[1734925456841,3.36575,3346.3,3345.1,0.60779102]
[1734925457150,2.98854,3346.2,3345.0,5.08793937]
[1734925457354,2.98897,3345.7,3345.0,5.08793937]
[1734925457551,0.37731,3346.3,3345.0,5.08793937]
[1734925457762,2.98905,3345.6,3345.0,5.08793937]
[1734925458803,2.98846,3346.2,3345.0,5.59673331]
[1734925459116,3.77315,3346.4,3345.0,5.59673331]
[1734925459445,2.98865,3346.0,3345.0,5.59673331]
[1734925459657,2.98845,3346.3,3345.0,5.59673331]
[1734925459865,2.98845,3346.3,3345.1,0.55967333]
[1734925460307,5.98819,3346.6,3345.1,0.55967333]
[1734925460441,2.9885,3346.2,3345.1,5.6476127]
[1734925461349,0.7848,3346.7,3345.1,5.6476127]
[1734925461697,3.7848,3346.7,3345.1,0.55967333]
[1734925461845,0.7848,3346.7,3345.2,0.35492833]
[1734925462050,2.98848,3346.2,3345.2,0.35492833]
[1734925462248,0.7727,3347.2,3345.2,0.35492833]
[1734925462447,3.7727,3347.2,3345.5,2.98903]
[1734925462757,2.67556363,3347.6,3345.7,5.08793937]
[1734925462991,2.98786,3346.9,3345.7,5.69088075]
[1734925463143,2.67556363,3347.6,3345.7,5.69088075]
[1734925463343,2.67556363,3347.6,3345.9,2.98873]
[1734925463575,2.98768,3347.1,3345.9,2.98873]
[1734925463794,2.98768,3347.1,3346.0,0.86796108]
[1734925463958,3.0,3347.5,3346.0,0.86796108]
[1734925464143,2.98777,3347.0,3346.0,0.86796108]
[1734925464344,2.98792,3346.9,3346.0,0.86796108]
[1734925464587,2.98748,3347.3,3346.0,0.86796108]
[1734925464779,2.98781,3347.0,3346.0,0.86796108]
[1734925464984,3.8253,3347.6,3345.7,5.69088075]
[1734925465181,2.98811,3346.6,3345.7,5.69088075]
[1734925466247,2.98822,3346.5,3345.6,5.44184237]
[1734925466495,2.98793,3346.8,3345.6,5.44184237]
[1734925467258,0.8238,3347.5,3345.8,5.08793937]
[1734925467451,0.8238,3347.5,3345.6,0.353903]
[1734925467452,2.98806,3346.7,3345.6,6.03842418]
[1734925467753,2.9878,3347.0,3345.6,9.02739418]
[1734925467976,2.9879,3346.9,3345.6,9.02739418]
[1734925468502,2.98776,3347.0,3345.8,2.98876]
[1734925469078,2.98756,3347.3,3345.7,5.08793937]
[1734925469404,2.9875,3347.3,3345.9,2.98873]
[1734925469569,0.8238,3347.5,3346.5,3.50275973]
[1734925469752,1.85026363,3348.0,3346.9,3.50275973]
[1734925469957,2.98711,3347.8,3346.9,3.50275973]
[1734925470216,1.85026363,3348.0,3346.7,5.08793937]
[1734925470217,2.98694,3347.9,3346.7,5.08793937]
[1734925470357,1.85026363,3348.0,3346.7,5.08793937]
[1734925470560,0.8146,3348.3,3346.9,3.50275973]
[1734925470753,2.98653,3348.4,3347.0,2.98768]
[1734925470953,2.98662,3348.3,3347.1,0.64904397]
[1734925471205,0.796,3348.6,3347.3,3.50275973]
[1734925471410,2.98641,3348.5,3347.1,0.64904397]
[1734925471573,0.796,3348.6,3347.1,0.64904397]
[1734925471910,2.98669,3348.2,3347.1,0.64904397]
[1734925472107,2.98669,3348.2,3347.2,0.71396337]
[1734925472311,2.9865,3348.4,3347.2,0.71396337]
[1734925472456,2.98677,3348.1,3347.2,0.71396337]
[1734925472656,2.98669,3348.2,3347.2,0.71396337]
[1734925473713,0.55,3348.9,3347.3,3.50275973]
[1734925473863,2.98683,3348.1,3347.3,3.50275973]
[1734925474063,2.98688,3348.0,3346.9,3.50275973]
[1734925474715,2.98655,3348.4,3347.3,3.50275973]
[1734925475011,3.9588129,3348.8,3347.3,3.50275973]
[1734925475012,2.98668,3348.2,3347.3,3.50275973]
[1734925476125,2.98623,3348.7,3347.3,3.50275973]
[1734925476337,0.39450429,3348.6,3347.7,3.50275973]
[1734925476638,2.98614,3348.8,3347.8,3.0]
[1734925479706,2.98596,3349.0,3347.8,5.98701]
[1734925480048,2.98572,3349.3,3348.1,3.50275973]
[1734925480335,0.59509034,3349.8,3348.5,3.50275973]
[1734925480556,2.98553,3349.5,3348.5,3.50275973]
[1734925480752,0.298553,3349.4,3348.5,3.50275973]
[1734925480902,2.98565,3349.4,3348.5,3.50275973]
[1734925481804,0.7946,3350.0,3348.5,3.50275973]
[1734925482535,2.9857,3349.3,3348.5,3.50275973]
[1734925482700,2.9857,3349.3,3348.3,0.59215975]
[1734925482897,2.9857,3349.3,3348.4,0.72432161]
[1734925483444,3.7946,3350.0,3348.5,3.50275973]
[1734925483606,2.98509,3350.0,3349.0,3.0]
[1734925484345,2.9849,3350.2,3349.0,3.0]
[1734925484541,2.98454,3350.6,3349.3,3.50275973]
[1734925484744,2.985,3350.1,3349.3,3.50275973]
[1734925485444,0.377914,3350.5,3349.3,3.50275973]
[1734925485651,0.7946,3349.9,3348.1,3.50275973]
[1734925485851,1.22281262,3349.9,3348.0,3.50275973]
[1734925486052,2.98534,3349.7,3348.0,3.50275973]
[1734925486227,2.98571,3349.3,3348.4,3.50275973]
[1734925486424,2.98571,3349.3,3348.4,3.8530357]
[1734925487424,0.7946,3349.9,3348.4,3.8530357]
[1734925487625,2.98587,3349.1,3348.4,3.50275973]
[1734925488019,2.98589,3349.1,3348.4,3.50275973]
[1734925489151,0.7946,3349.9,3348.4,3.50275973]
[1734925489330,2.98618,3348.8,3348.1,3.0]
[1734925490356,2.98608,3348.9,3348.1,4.21755975]
[1734925490531,0.7946,3349.2,3348.1,4.21755975]
[1734925491123,0.7946,3349.2,3348.0,3.50275973]
[1734925491124,2.98588,3349.1,3348.0,3.50275973]
[1734925491329,2.98588,3349.1,3347.5,5.08793937]
[1734925491330,2.98663,3348.3,3347.6,3.50275973]
[1734925492583,2.98667,3348.2,3347.7,3.0]
[1734925492738,0.7601,3348.7,3346.8,3.50275973]
[1734925492926,2.98676,3348.1,3347.0,0.60290537]
[1734925493268,2.98676,3348.1,3346.1,5.08793937]
[1734925493435,2.98676,3348.1,3346.0,3.50275973]
[1734925493436,2.98761,3347.2,3346.2,5.08793937]
[1734925494150,3.8329,3348.5,3346.8,3.50275973]
[1734925494473,0.35773838,3348.6,3347.0,2.98771]
[1734925494677,0.8329,3348.8,3347.1,3.0]
[1734925494816,0.8329,3348.8,3347.0,3.0]
[1734925494817,2.98707,3347.8,3347.0,3.0]
[1734925495022,0.8329,3348.8,3347.0,3.0]
[1734925495253,2.98696,3347.9,3347.0,3.0]
[1734925495565,2.98713,3347.7,3347.0,3.0]
[1734925495767,2.98713,3347.7,3347.1,1.19409751]
[1734925495969,2.98713,3347.7,3347.0,3.0]
[1734925496569,2.98684,3348.1,3347.0,0.58400664]
[1734925496721,2.98606,3348.9,3347.6,8.08793937]
[1734925496919,2.98606,3348.9,3347.6,11.07513937]
[1734925497222,2.98587,3349.1,3347.8,2.98699]
[1734925497423,2.98587,3349.1,3347.9,4.16249294]
[1734925497640,2.98599,3349.0,3347.9,4.16249294]
[1734925497872,2.98607,3348.9,3347.9,1.16249294]
[1734925498239,2.98592,3349.1,3347.9,1.16249294]
[1734925498437,2.98592,3349.1,3348.0,0.76996029]
[1734925499084,0.8329,3349.4,3348.0,0.76996029]
[1734925499381,2.98605,3348.9,3348.0,0.76996029]
[1734925499677,2.98623,3348.7,3348.0,0.76996029]
[1734925499882,2.98623,3348.7,3347.9,0.60061783]
[1734925500025,2.98652,3348.4,3347.7,3.0]
[1734925500226,2.98652,3348.4,3347.1,5.08793937]
[1734925500227,2.98652,3348.4,3347.2,3.0]
[1734925500529,2.98643,3348.5,3347.4,3.0]
[1734925500768,0.55,3349.3,3347.1,5.23464867]
[1734925501027,2.9862,3348.8,3347.5,0.60755586]
[1734925501258,2.98607,3348.9,3347.6,2.98715]
[1734925501929,2.98614,3348.8,3347.5,3.60755586]
[1734925502128,2.98614,3348.8,3347.6,1.00976356]
[1734925502344,2.98593,3349.1,3347.6,6.09770293]
[1734925502546,2.98575,3349.3,3348.0,2.98681]
[1734925502777,2.98575,3349.3,3347.9,3.0]
[1734925502778,2.98575,3349.3,3348.1,2.98676]
[1734925502931,2.98575,3349.3,3348.2,3.0]
[1734925503127,2.98575,3349.3,3348.3,0.598676]
[1734925503629,2.98492,3350.2,3348.7,3.0]
[1734925503826,2.98517,3349.9,3348.7,3.0]
[1734925504027,2.985,3350.1,3348.7,11.07413937]
[1734925504391,0.7859,3350.7,3348.8,0.55]
[1734925504392,2.98509,3350.0,3348.8,0.55]
[1734925504579,2.98522,3349.9,3348.9,1.00389597]
[1734925504745,2.98522,3349.9,3349.0,0.59840484]
[1734925505893,2.98482,3350.3,3349.1,3.0]
[1734925506058,2.9845,3350.7,3349.1,3.0]
[1734925506259,2.98454,3350.6,3349.2,1.10909605]
[1734925506478,2.98476,3350.4,3349.2,1.10909605]
[1734925507290,2.98481,3350.3,3349.2,1.10909605]
[1734925508156,2.98495,3350.2,3349.2,1.10909605]
[1734925508504,2.98495,3350.2,3349.3,1.32982]
[1734925508793,2.98495,3350.2,3349.5,3.0]
[1734925508794,2.9849,3350.2,3349.5,3.0]
[1734925508991,2.985,3350.1,3349.3,1.32982]
[1734925510080,0.7587,3350.7,3349.0,4.10116457]
[1734925510289,2.98528,3349.8,3349.0,4.10116457]
[1734925511697,2.98497,3350.2,3349.1,3.0]
[1734925512176,2.98444,3350.8,3349.1,8.08793937]
[1734925512599,2.98466,3350.5,3349.4,3.50275973]
[1734925512810,2.98466,3350.5,3349.5,0.35027597]
[1734925513140,2.98484,3350.3,3349.5,3.35027597]
[1734925513893,2.98489,3350.2,3349.5,3.35027597]
[1734925514102,0.55,3350.9,3349.2,3.0]
[1734925514409,0.55,3350.9,3349.1,3.0]
[1734925514410,2.98445,3350.7,3349.1,3.0]
[1734925514547,3.77162,3350.5,3349.1,3.0]
[1734925514748,2.9853,3349.8,3349.1,3.0]
[1734925514953,2.9853,3349.8,3349.1,3.7248719]
[1734925516201,2.98509,3350.0,3349.1,3.7248719]
[1734925517606,3.0,3350.2,3349.0,0.59840484]
[1734925517906,3.0,3350.2,3347.7,2.72286792]
[1734925517907,2.98587,3349.2,3348.2,1.17009563]
[1734925518071,2.98659,3348.3,3348.2,1.17009563]
[1734925518267,3.377269,3349.2,3348.2,1.17009563]
[1734925518468,0.377269,3349.2,3348.2,1.17009563]
[1734925518669,2.98587,3349.1,3348.2,1.17009563]
[1734925518971,2.98659,3348.3,3348.2,1.17009563]
[1734925519170,2.98659,3348.3,3347.3,5.08793937]
[1734925519390,2.9867,3348.2,3347.4,0.5238267]
[1734925519603,2.98678,3348.1,3347.4,0.5238267]
[1734925519811,2.98641,3348.5,3347.4,0.5238267]
[1734925519969,2.98695,3347.9,3347.4,0.5238267]
[1734925520172,0.7959,3348.7,3346.7,5.08793937]
[1734925520173,2.98726,3347.6,3346.7,5.08793937]
[1734925520411,2.98719,3347.7,3346.5,5.08793937]
[1734925520582,2.9872,3347.7,3346.6,5.08793937]
[1734925520780,3.53641,3348.5,3346.0,2.3420094]
[1734925520781,2.98855,3346.1,3346.0,2.3420094]
[1734925521028,2.98891,3345.7,3345.3,4.20347543]
[1734925521190,0.7889,3346.0,3345.3,4.20347543]
[1734925521191,2.98886,3345.8,3345.3,4.20347543]
[1734925521526,2.98897,3345.7,3345.5,2.39164393]
[1734925522568,2.9891,3345.5,3344.7,0.8071]
[1734925522774,0.7889,3346.0,3344.7,0.8071]
[1734925522970,2.98892,3345.7,3344.7,0.8071]
[1734925523366,2.98873,3345.9,3344.7,0.8071]
[1734925523570,2.98921,3345.4,3344.7,0.8071]
[1734925523997,0.7889,3346.0,3344.7,0.8071]
[1734925523998,2.98895,3345.7,3344.7,0.8071]
[1734925524212,0.7679,3346.5,3344.7,0.8071]
[1734925524427,2.98853,3346.2,3344.8,5.73800444]
[1734925524835,0.7679,3346.5,3345.0,3.0]
[1734925524836,2.9882,3346.5,3345.0,3.0]
[1734925525060,2.9882,3346.5,3345.2,3.50275973]
[1734925525398,2.98833,3346.4,3345.3,3.0]
[1734925525626,2.98833,3346.4,3345.4,0.78691955]
[1734925525937,2.98775,3347.0,3345.6,3.0]
[1734925526112,2.98787,3346.9,3345.6,3.0]
[1734925527328,2.98739,3347.4,3345.6,3.0]
[1734925527523,3.0,3347.3,3345.7,0.90233601]
[1734925527838,4.35998044,3347.6,3345.7,0.90233601]
[1734925527839,0.59615095,3348.1,3346.5,3.7881]
[1734925528040,0.59615095,3348.1,3346.8,0.60728501]
[1734925528199,0.59615095,3348.1,3346.8,3.60728501]
[1734925528406,0.59615095,3348.1,3346.8,0.60728501]
[1734925528628,2.98685,3348.0,3346.8,0.60728501]
[1734925528831,2.98667,3348.2,3346.5,0.7881]
[1734925529002,2.98762,3347.2,3346.5,0.7881]
[1734925529545,3.50275973,3348.2,3346.5,0.7881]
[1734925529546,3.0,3347.9,3346.5,0.7881]
[1734925529745,2.98769,3347.1,3346.5,0.7881]
[1734925529943,3.55,3347.7,3346.5,0.7881]
[1734925530246,2.9877,3347.1,3346.5,0.7881]
[1734925530446,2.98715,3347.7,3346.5,0.7881]
[1734925531001,3.0,3348.1,3346.5,0.7881]
[1734925531244,2.98733,3347.5,3346.5,0.7881]
[1734925531740,2.98708,3347.8,3346.6,0.37881]
[1734925531941,2.98732,3347.5,3346.6,0.37881]
[1734925532859,2.98742,3347.4,3346.5,0.7881]
[1734925533069,2.98751,3347.3,3346.5,0.7881]
[1734925533578,2.98782,3347.0,3346.5,0.7881]
[1734925534356,2.98723,3347.6,3346.5,0.7881]
[1734925534357,2.98755,3347.3,3346.5,0.7881]
[1734925534568,2.98723,3347.6,3346.5,0.7881]
[1734925534777,0.55,3348.1,3346.5,0.7881]
[1734925535271,2.98761,3347.2,3346.5,0.7881]
[1734925535438,3.55,3347.9,3346.5,0.7881]
[1734925535790,2.9882,3346.5,3346.0,0.7509]
[1734925535963,2.98814,3346.6,3346.0,0.7509]
[1734925536533,2.98791,3346.9,3346.0,0.7509]
[1734925536974,2.98791,3346.9,3346.0,1.12599]
[1734925538278,2.98757,3347.2,3346.0,1.12599]
[1734925538482,2.98757,3347.2,3346.0,0.7509]
[1734925538802,2.98766,3347.1,3346.0,0.7509]
[1734925539883,2.98739,3347.4,3346.1,3.0]
[1734925540071,3.77751,3347.8,3346.1,3.0]
[1734925540352,3.0,3347.6,3346.1,3.0]
[1734925540566,3.7904,3347.8,3346.0,0.7509]
[1734925540771,2.9874,3347.4,3346.1,6.87242394]
[1734925541254,2.98716,3347.7,3346.5,0.7701]
[1734925541454,2.98716,3347.7,3346.5,3.7701]
[1734925542671,2.98692,3348.0,3346.9,3.0]
[1734925542855,2.98692,3348.0,3346.9,4.19009494]
[1734925543788,2.98696,3347.9,3346.9,1.19009494]
[1734925544085,2.98705,3347.8,3346.7,0.8251]
[1734925544300,2.98686,3348.0,3346.7,0.8251]
[1734925544796,2.98686,3348.0,3346.9,0.60837525]
[1734925544992,3.0,3348.2,3346.9,3.59616525]
[1734925545141,2.98681,3348.1,3346.9,0.60837525]
[1734925545343,2.98681,3348.1,3347.1,0.7949]
[1734925545781,2.98697,3347.9,3347.1,0.7949]
[1734925546496,2.98706,3347.8,3347.1,0.7949]
[1734925546700,0.7618,3348.7,3347.1,0.7949]
[1734925546988,2.98685,3348.1,3347.1,0.7949]
[1734925547566,2.9866,3348.3,3347.1,1.5855035]
[1734925547982,2.98641,3348.5,3347.2,2.98755]
[1734925548160,2.98599,3349.0,3347.2,2.98755]
[1734925548161,0.7697,3349.8,3347.5,3.0]
[1734925548384,0.7697,3349.8,3347.9,0.8108]
[1734925548571,0.7697,3349.8,3347.8,3.50275973]
[1734925548572,2.46701817,3350.3,3348.3,8.89683937]
[1734925548756,2.98508,3350.0,3348.6,2.98623]
[1734925548957,2.98493,3350.2,3348.6,3.50275973]
[1734925549160,2.46701817,3350.3,3349.1,0.8089]
[1734925549361,4.83500363,3350.4,3349.1,0.8089]
[1734925549575,1.85026363,3350.4,3349.1,0.8089]
[1734925549745,2.98516,3350.0,3349.1,0.8089]
[1734925550294,2.98518,3349.9,3349.1,0.8089]
[1734925550450,3.0,3350.3,3349.1,0.8089]
[1734925550652,2.9854,3349.7,3349.1,0.8089]
[1734925551689,3.12945894,3351.2,3349.1,0.8089]
[1734925551690,2.98478,3350.4,3349.1,0.8089]
[1734925551898,2.98478,3350.4,3349.1,4.74885991]
[1734925552253,2.98478,3350.4,3349.1,7.73470991]
[1734925552562,2.98491,3350.2,3349.2,0.8247]
[1734925552783,2.98553,3349.5,3349.2,0.8247]
[1734925553095,2.98514,3350.0,3349.2,0.8247]
[1734925553263,2.98514,3350.0,3348.2,3.50275973]
[1734925553264,3.0,3349.5,3348.2,3.50275973]
[1734925553450,2.98607,3348.9,3348.2,0.8247]
[1734925553800,3.0,3349.5,3348.2,0.8247]
[1734925553957,3.0,3349.6,3348.2,0.8247]
[1734925554154,2.98602,3349.0,3348.2,0.8247]
[1734925555366,3.55,3349.8,3348.2,1.26711721]
[1734925555367,2.98572,3349.3,3348.2,1.26711721]
[1734925555562,2.98551,3349.6,3348.2,4.76987694]
[1734925555765,3.0,3349.8,3348.2,4.76987694]
[1734925555965,2.98576,3349.3,3348.2,4.76987694]
[1734925556161,2.98576,3349.3,3348.3,0.53693491]
[1734925556613,2.9858,3349.2,3348.3,0.53693491]
[1734925556825,2.98611,3348.9,3348.2,0.8247]
[1734925557105,2.98651,3348.4,3348.2,0.8247]
[1734925557312,2.98625,3348.7,3348.2,0.8247]
[1734925557489,0.7958,3349.4,3348.2,0.8247]
[1734925558293,2.98637,3348.6,3348.2,0.8247]
[1734925558495,2.98652,3348.4,3347.8,0.8043]
[1734925559169,2.98687,3348.0,3347.8,0.8043]
[1734925559485,2.98704,3347.8,3347.1,0.8043]
[1734925559666,2.98704,3347.8,3347.1,1.23500597]
[1734925560070,2.98687,3348.0,3347.1,1.23500597]
[1734925560269,2.98697,3347.9,3347.1,1.23500597]
[1734925561097,2.98697,3347.9,3347.1,1.18500597]
[1734925561415,2.98741,3347.4,3347.1,0.7543]
[1734925561583,2.98659,3348.3,3347.1,0.7543]
[1734925561584,2.98749,3347.3,3347.1,0.7543]
[1734925561911,2.98727,3347.6,3347.1,0.7543]
[1734925562233,3.0,3348.3,3347.1,0.7543]
[1734925562398,2.98687,3348.0,3347.1,0.7543]
[1734925562565,3.0,3348.4,3347.1,0.7543]
[1734925562566,2.98666,3348.3,3347.1,0.7543]
[1734925562769,3.0,3348.5,3347.2,0.374204]
[1734925562983,2.98685,3348.0,3347.1,0.7543]
[1734925563178,3.0,3348.3,3347.1,0.7543]
[1734925563548,0.754,3348.8,3346.9,3.50275973]
[1734925563689,2.98551,3349.6,3346.7,0.55]
[1734925563690,0.7918,3349.3,3347.3,3.50275973]
[1734925563870,2.98597,3349.0,3347.8,2.98702]
[1734925564076,2.98579,3349.2,3348.0,0.775]
[1734925564470,2.98568,3349.4,3348.0,4.35288233]
[1734925564720,2.98588,3349.1,3348.0,1.36609233]
[1734925565380,2.9857,3349.3,3348.1,2.98674]
[1734925565712,2.9857,3349.3,3348.0,1.36609233]
[1734925565914,2.98579,3349.2,3348.1,0.43530023]
[1734925566214,2.98588,3349.1,3348.1,0.43530023]
[1734925566429,2.98543,3349.6,3348.1,0.43530023]
[1734925566725,2.98607,3348.9,3348.0,1.36609233]
[1734925567023,2.98594,3349.1,3348.0,1.36609233]
[1734925567322,3.0,3349.4,3348.0,1.36609233]
[1734925567483,0.55,3349.6,3348.0,0.775]
[1734925567686,2.98623,3348.7,3348.0,0.775]
[1734925568217,2.98594,3349.1,3348.0,0.775]
[1734925568716,2.98597,3349.0,3348.0,0.775]
[1734925568925,3.55,3349.3,3348.0,0.775]
[1734925569138,3.0,3348.9,3346.9,0.7726]
[1734925569292,2.9871,3347.8,3346.9,0.7726]
[1734925569470,2.9871,3347.8,3346.9,1.35865394]
[1734925569676,3.0,3348.5,3346.9,1.35865394]
[1734925569919,5.98646,3348.5,3346.9,1.35865394]
[1734925570123,2.98687,3348.0,3346.9,1.35865394]
[1734925570898,2.98687,3348.0,3346.9,0.7726]
[1734925571206,3.50275973,3348.2,3346.9,0.7726]
[1734925571407,2.9865,3348.4,3345.8,3.77421]
[1734925571408,2.98778,3347.0,3345.8,3.77421]
[1734925571616,3.55,3347.6,3345.9,0.88621494]
[1734925571791,3.0,3347.6,3345.5,0.7854]
[1734925571988,2.98712,3347.7,3345.5,0.7854]
[1734925571989,2.98746,3347.4,3345.9,3.59379887]
[1734925572192,2.98753,3347.3,3346.2,0.7854]
[1734925572703,3.0,3347.7,3346.2,0.7854]
[1734925572909,2.98748,3347.3,3346.2,0.7854]
[1734925573204,2.98733,3347.5,3346.2,4.21171689]
[1734925573410,2.98733,3347.5,3346.3,0.7854]
[1734925573576,2.98685,3348.0,3346.3,0.7854]
[1734925573778,5.98695,3347.9,3346.6,2.98806]
[1734925574102,5.98695,3347.9,3346.7,1.084206]
[1734925574819,2.98715,3347.7,3346.7,1.084206]
[1734925575019,3.0,3348.1,3346.7,0.7854]
[1734925575221,2.98722,3347.6,3346.7,0.7854]
[1734925575574,2.987,3347.9,3346.7,0.7854]
[1734925575777,3.0,3348.1,3346.7,0.7854]
[1734925575976,2.98721,3347.6,3346.7,0.7854]
[1734925576602,2.98732,3347.5,3346.7,0.7854]
[1734925576777,2.98711,3347.8,3346.7,0.7854]
[1734925576978,3.0,3348.1,3346.7,1.162767]
[1734925577180,2.98685,3348.0,3346.7,0.7854]
[1734925577379,3.0,3348.1,3346.7,0.7854]
[1734925577380,2.9871,3347.8,3346.7,0.7854]
[1734925577630,2.98692,3348.0,3346.7,0.7854]
[1734925578080,3.0,3348.2,3346.9,2.98783]
[1734925578280,3.0,3348.4,3347.2,2.98751]
[1734925578508,2.98691,3348.0,3347.4,0.7735]
[1734925579229,3.0,3348.9,3347.4,0.7735]
[1734925579532,2.98668,3348.2,3347.4,0.7735]
[1734925579711,2.98631,3348.7,3347.4,0.7735]
[1734925579897,2.9872,3347.7,3347.4,0.7735]
[1734925580327,5.98655,3348.4,3347.4,0.7735]
[1734925580532,2.93679,3348.1,3347.4,0.7735]
[1734925580890,3.0,3348.4,3347.4,0.7735]
[1734925581116,3.0,3348.6,3347.4,3.76087]
[1734925581325,3.0,3348.6,3347.5,0.376087]
[1734925582530,2.98634,3348.6,3347.5,0.376087]
[1734925583231,2.9856,3349.4,3347.8,3.50275973]
[1734925583383,2.98542,3349.7,3348.3,2.98658]
[1734925583582,4.83570363,3349.6,3348.5,0.7854]
[1734925584198,1.85026363,3349.6,3348.5,0.7854]
[1734925584404,1.85026363,3349.6,3348.5,2.98635]
[1734925584603,1.85026363,3349.6,3348.6,0.7854]
[1734925584894,2.98553,3349.5,3348.6,0.7854]
[1734925585304,1.85026363,3349.6,3348.6,0.7854]
[1734925585597,3.0,3349.6,3348.7,0.377186]
[1734925586188,2.98484,3350.3,3349.0,2.98594]
[1734925586434,4.83492363,3350.5,3349.2,2.98577]
[1734925586630,4.83492363,3350.5,3349.3,1.383977]
[1734925586928,2.98466,3350.5,3349.3,1.383977]
[1734925587229,2.98472,3350.4,3349.3,1.383977]
[1734925587594,1.85026363,3350.6,3349.4,0.7854]
[1734925588093,1.85026363,3350.6,3349.3,3.584247]
[1734925588094,1.85026363,3350.6,3349.7,0.7854]
[1734925588294,1.85026363,3350.6,3349.7,1.162482]
[1734925588495,2.98428,3350.9,3349.7,1.162482]
[1734925589234,2.98428,3350.9,3349.8,0.7552]
[1734925590423,2.98428,3350.9,3349.8,1.35558565]
[1734925591336,2.98409,3351.1,3349.8,0.7552]
[1734925591642,2.98499,3350.1,3349.8,0.7552]
[1734925592548,3.50275973,3350.6,3349.4,0.7663]
[1734925592847,2.98462,3350.5,3349.4,0.7663]
[1734925592993,3.0,3350.4,3349.4,0.7663]
[1734925593194,3.0,3350.4,3349.0,0.7663]
[1734925593394,4.09788356,3350.6,3349.0,0.7663]
[1734925593395,3.7635,3350.1,3349.0,0.7663]
[1734925593625,2.98543,3349.6,3349.0,0.7663]
[1734925593830,2.98554,3349.5,3349.0,0.7663]
[1734925595625,2.98535,3349.7,3349.0,0.7663]
[1734925595831,2.98523,3349.9,3349.0,0.7663]
[1734925596327,2.98529,3349.8,3349.0,0.7663]
[1734925597336,2.98535,3349.7,3349.0,0.7663]
[1734925597660,2.98531,3349.8,3349.0,0.7663]
[1734925597815,3.0,3350.2,3349.0,0.7663]
[1734925598168,2.98534,3349.7,3349.0,0.7663]
[1734925598503,2.98543,3349.6,3349.0,0.7663]
[1734925598944,0.55,3350.1,3349.0,0.7663]
[1734925599128,2.98571,3349.3,3349.0,0.7663]
[1734925599439,0.55,3350.1,3349.0,0.7663]
[1734925599440,0.55,3349.9,3349.0,0.7163]
[1734925599643,2.98587,3349.1,3349.0,0.7163]
[1734925600151,0.55,3349.9,3347.8,3.50275973]
[1734925600355,3.0,3349.6,3347.8,3.50275973]
[1734925600653,0.7662,3349.8,3347.9,0.85906991]
[1734925600654,2.98615,3348.8,3347.9,0.85906991]
[1734925600941,2.98573,3349.3,3348.0,2.98676]
[1734925600942,2.98571,3349.3,3348.0,2.98676]
[1734925601158,3.0,3349.6,3348.0,0.60934641]
[1734925601319,5.9855,3349.6,3348.4,2.98645]
[1734925601502,2.98553,3349.5,3348.2,3.50275973]
[1734925601698,2.98553,3349.5,3348.3,1.21867455]
[1734925602342,2.98565,3349.4,3348.4,0.7354]
[1734925603867,3.0,3349.8,3348.4,0.7354]
[1734925604149,2.98526,3349.8,3348.7,0.7354]
[1734925604455,3.0,3350.1,3348.7,0.7354]
[1734925604456,2.98542,3349.7,3348.7,0.7354]
[1734925605264,2.98542,3349.7,3348.7,1.107586]
[1734925605403,3.0,3350.0,3348.7,1.107586]
[1734925605610,2.9856,3349.4,3348.7,0.7354]
[1734925605832,2.98516,3349.9,3348.7,0.7354]
[1734925606050,2.98588,3349.1,3348.7,0.7354]
[1734925606359,0.7786,3349.8,3348.7,0.7354]
[1734925606505,2.98624,3348.7,3348.0,0.7354]
[1734925606708,2.98633,3348.6,3348.0,0.7354]
[1734925606953,0.55,3349.7,3348.0,0.7354]
[1734925606954,2.9865,3348.4,3348.0,0.7354]
[1734925607268,3.0,3348.7,3347.4,0.7354]